bitfinex-derivatives/quotes_BTCF0:USTF0_20240825
["timestamp","ask_amount","ask_price","bid_price","bid_amount"]
[1724585467675,0.21156484,64029.0,64028.0,0.0614]
[1724585468367,0.09367647,64029.0,64028.0,0.0624]
[1724585468569,0.05545517,64029.0,64028.0,0.0624]
[1724585468975,0.21156484,64029.0,64028.0,0.0624]
[1724585469375,0.09367647,64029.0,64028.0,0.0624]
[1724585469577,0.05545517,64029.0,64028.0,0.0624]
[1724585469783,0.21156484,64029.0,64028.0,0.0624]
[1724585471685,0.09367647,64029.0,64028.0,0.0624]
[1724585471882,0.05545517,64029.0,64028.0,0.0624]
[1724585472283,0.1656756,64029.0,64028.0,0.0624]
[1724585472476,0.23404611,64029.0,64028.0,0.0624]
[1724585472676,0.19582481,64029.0,64028.0,0.0624]
[1724585473480,0.05545517,64029.0,64028.0,0.0624]
[1724585473783,0.75786828,64034.0,64028.0,0.10894545]
[1724585473981,0.75706828,64034.0,64028.0,0.10894545]
[1724585474687,0.75706828,64034.0,64033.0,0.0004]
[1724585474883,0.75706828,64034.0,64033.0,0.0204]
[1724585476380,0.75706828,64034.0,64033.0,0.0214]
[1724585476592,0.70440352,64034.0,64033.0,0.0214]
[1724585477086,0.70440352,64034.0,64033.0,0.0224]
[1724585477686,0.75705676,64034.0,64033.0,0.0224]
[1724585477891,0.67909845,64034.0,64033.0,0.0224]
[1724585478081,0.7570573,64034.0,64033.0,0.0224]
[1724585478281,0.67909845,64034.0,64033.0,0.0224]
[1724585478484,0.75705522,64034.0,64033.0,0.0224]
[1724585478784,0.75705579,64034.0,64033.0,0.0224]
[1724585479289,0.67909845,64034.0,64033.0,0.0224]
[1724585479679,0.75705543,64034.0,64033.0,0.0224]
[1724585479984,0.67909845,64034.0,64033.0,0.0224]
[1724585482383,0.67909845,64034.0,64033.0,0.0024]
[1724585482790,0.67909845,64034.0,64033.0,0.0124]
[1724585485495,0.75705543,64034.0,64033.0,0.0124]
[1724585485879,0.67909845,64034.0,64033.0,0.0124]
[1724585486392,0.75705543,64034.0,64033.0,0.0124]
[1724585488382,0.75705543,64034.0,64033.0,0.0114]
[1724585488585,0.91313915,64034.0,64033.0,0.0124]
[1724585488789,0.82283351,64034.0,64033.0,0.0124]
[1724585489393,0.96320315,64034.0,64033.0,0.0124]
[1724585490295,0.82283351,64034.0,64033.0,0.0124]
[1724585490496,0.96320315,64034.0,64033.0,0.0124]
[1724585491595,0.96323699,64034.0,64033.0,0.0124]
[1724585492890,0.46203351,64034.0,64033.0,0.0124]
[1724585493188,0.41196951,64034.0,64033.0,0.0124]
[1724585495086,0.37375042,64034.0,64033.0,0.0124]
[1724585495488,0.37374759,64034.0,64033.0,0.0124]
[1724585495789,0.31829845,64034.0,64033.0,0.0124]
[1724585496483,0.02813558,64034.0,64033.0,0.0124]
[1724585496682,0.07802602,64037.0,64033.0,0.0124]
[1724585497091,0.07802602,64038.0,64033.0,0.0124]
[1724585497297,0.07802602,64037.0,64036.0,0.04657821]
[1724585497485,0.07802602,64038.0,64036.0,0.13657821]
[1724585497687,0.10637098,64040.0,64036.0,0.09]
[1724585497891,0.07802602,64040.0,64038.0,0.04657029]
[1724585498089,0.07802602,64040.0,64038.0,0.15657029]
[1724585498296,0.07799923,64043.0,64039.0,0.46848]
[1724585498494,0.3608,64051.0,64040.0,0.0621026]
[1724585498495,0.06239442,64042.0,64040.0,0.0621026]
[1724585498695,0.3608,64051.0,64041.0,0.0621026]
[1724585498696,0.06239442,64044.0,64041.0,0.0621026]
[1724585498996,0.06239442,64044.0,64041.0,0.1721026]
[1724585499191,0.09064942,64044.0,64042.0,0.0621026]
[1724585499399,0.028255,64044.0,64043.0,0.0004]
[1724585499701,0.06239442,64045.0,64043.0,0.0904]
[1724585499891,0.06239442,64045.0,64044.0,0.04650878]
[1724585500192,0.06239442,64045.0,64044.0,0.11650878]
[1724585500398,0.06239442,64047.0,64044.0,0.0704]
[1724585500592,0.06239442,64046.0,64044.0,0.0704]
[1724585500898,0.06239442,64047.0,64044.0,0.0704]
[1724585501690,0.06239442,64047.0,64046.0,0.0004]
[1724585502123,0.07799923,64050.0,64046.0,0.0004]
[1724585502797,0.05504091,64049.0,64046.0,0.0004]
[1724585502999,0.05504091,64048.0,64044.0,0.002]
[1724585503196,0.1401839,64045.0,64044.0,0.001]
[1724585503390,0.02529945,64045.0,64044.0,0.001]
[1724585503792,0.02529945,64045.0,64044.0,0.011]
[1724585503990,0.02529945,64045.0,64044.0,0.01]
[1724585503991,0.06351092,64045.0,64044.0,0.01]
[1724585504194,0.02529945,64045.0,64044.0,0.01]
[1724585504886,0.02529945,64045.0,64044.0,0.011]
[1724585505697,0.02529945,64045.0,64044.0,0.012]
[1724585505892,0.18140912,64045.0,64044.0,0.012]
[1724585506196,0.06351092,64045.0,64044.0,0.012]
[1724585506398,0.02529945,64045.0,64044.0,0.012]
[1724585507095,0.06351092,64045.0,64044.0,0.012]
[1724585507292,0.02529945,64045.0,64044.0,0.012]
[1724585510597,0.15610967,64046.0,64044.0,0.012]
[1724585510797,0.04669276,64047.0,64044.0,0.012]
[1724585511709,0.005,64046.0,64044.0,0.011]
[1724585511902,0.005,64046.0,64044.0,0.012]
[1724585511903,0.017,64046.0,64044.0,0.012]
[1724585512402,0.06369276,64047.0,64044.0,0.012]
[1724585512899,0.05169276,64047.0,64044.0,0.011]
[1724585514301,0.56169276,64047.0,64044.0,0.011]
[1724585514504,0.55669276,64047.0,64044.0,0.01]
[1724585514702,0.005,64046.0,64044.0,0.011]
[1724585515100,0.005,64046.0,64044.0,0.012]
[1724585515302,0.56949276,64047.0,64044.0,0.011]
[1724585515606,0.57369276,64047.0,64044.0,0.012]
[1724585516407,0.56169276,64047.0,64044.0,0.011]
[1724585516597,0.05869276,64046.0,64044.0,0.012]
[1724585518301,0.05869276,64046.0,64045.0,0.07803]
[1724585518302,0.05169276,64046.0,64045.0,0.07803]
[1724585518508,0.05169276,64046.0,64045.0,0.17803]
[1724585519207,0.06369276,64046.0,64045.0,0.17803]
[1724585519509,0.017,64046.0,64045.0,0.17803]
[1724585519805,0.017,64046.0,64045.0,0.17903]
[1724585520201,0.06371519,64046.0,64045.0,0.17903]
[1724585520506,0.017,64046.0,64045.0,0.17903]
[1724585520902,0.017,64046.0,64045.0,0.18003]
[1724585523405,0.07925702,64046.0,64045.0,0.18003]
[1724585524517,0.0793528,64046.0,64045.0,0.18003]
[1724585524699,0.45583,64046.0,64045.0,0.002]
[1724585524904,1.40226,64046.0,64045.0,0.002]
[1724585525206,0.078039,64039.0,64036.0,0.078042]
[1724585525412,0.3608,64037.0,64036.0,0.078042]
[1724585525805,0.45446742,64037.0,64036.0,0.078042]
[1724585526004,0.45486742,64037.0,64036.0,0.078042]
[1724585526204,0.41664981,64037.0,64036.0,0.078042]
[1724585526412,0.45486742,64037.0,64036.0,0.078042]
[1724585526712,0.45486742,64037.0,64036.0,0.079042]
[1724585527103,1.32334742,64037.0,64030.0,0.00023425]
[1724585527303,1.32334742,64037.0,64022.0,0.078059]
[1724585527304,0.3608,64031.0,64022.0,0.078059]
[1724585527510,0.3608,64023.0,64022.0,0.078059]
[1724585527811,0.57923895,64023.0,64022.0,0.078059]
[1724585528006,0.57963895,64023.0,64022.0,0.078059]
[1724585528209,0.45486989,64023.0,64022.0,0.078059]
[1724585528608,0.45488461,64023.0,64022.0,0.078059]
[1724585529005,0.46588461,64023.0,64022.0,0.079059]
[1724585529211,0.53669611,64023.0,64022.0,0.079059]
[1724585529718,0.53669611,64023.0,64022.0,0.001]
[1724585529911,0.53669611,64023.0,64016.0,0.00023425]
[1724585529912,0.42765999,64023.0,64016.0,0.00023425]
[1724585530108,0.3608,64017.0,64016.0,0.00023425]
[1724585530309,0.52530245,64017.0,64016.0,0.00023425]
[1724585530509,0.60329688,64017.0,64016.0,0.00023425]
[1724585530709,0.53295697,64017.0,64016.0,0.00023425]
[1724585531106,0.60369771,64017.0,64016.0,0.00023425]
[1724585531314,0.49872499,64017.0,64016.0,0.00023425]
[1724585532517,0.50172499,64017.0,64016.0,0.00023425]
[1724585532712,1.29229999,64017.0,64001.0,0.3223]
[1724585532910,1.29229999,64017.0,63986.0,0.3608]
[1724585532911,0.3608,64003.0,63995.0,0.36192]
[1724585533110,0.3608,64003.0,64001.0,0.078085]
[1724585533111,0.07520816,64002.0,64001.0,0.078085]
[1724585533415,0.07521741,64002.0,64001.0,0.078085]
[1724585533818,0.07521741,64002.0,64001.0,0.090085]
[1724585533819,0.0499,64002.0,64001.0,0.090085]
[1724585534614,0.0499,64002.0,64001.0,0.091085]
[1724585535118,0.0499,64002.0,64001.0,0.090085]
[1724585535622,0.0499,64002.0,64001.0,0.091085]
[1724585536521,0.38947525,64003.0,64001.0,0.091085]
[1724585537225,0.38947525,64003.0,64002.0,0.0004]
[1724585538916,0.38947525,64003.0,64002.0,0.078484]
[1724585539112,0.38947525,64003.0,64002.0,0.088484]
[1724585539318,0.38947525,64003.0,64002.0,0.090484]
[1724585559633,0.43627184,64003.0,64002.0,0.090484]
[1724585560139,0.38947525,64003.0,64002.0,0.13699278]
[1724585560436,0.38947525,64003.0,64002.0,0.090484]
[1724585560633,0.43629143,64003.0,64002.0,0.090484]
[1724585560826,0.38947525,64003.0,64002.0,0.090484]
[1724585561021,0.43629171,64003.0,64002.0,0.090484]
[1724585561227,0.38947525,64003.0,64002.0,0.1525866]
[1724585561628,0.38947525,64003.0,64002.0,0.090484]
[1724585566235,0.02867525,64003.0,64002.0,0.090484]
[1724585566439,0.438881,64005.0,64003.0,0.078082]
[1724585566630,0.438881,64005.0,64003.0,0.16029767]
[1724585567233,0.438881,64005.0,64004.0,0.0004]
[1724585567740,0.438881,64005.0,64004.0,0.0104]
[1724585568739,0.46745795,64005.0,64004.0,0.088481]
[1724585571438,0.54512932,64005.0,64004.0,0.088481]
[1724585572333,0.46745795,64005.0,64004.0,0.088481]
[1724585572735,0.54512932,64005.0,64004.0,0.088481]
[1724585573443,0.46745795,64005.0,64004.0,0.088481]
[1724585574838,0.46745795,64005.0,64004.0,0.15069667]
[1724585575036,0.46745795,64005.0,64004.0,0.088481]
[1724585577941,0.38937695,64005.0,64004.0,0.088481]
[1724585578144,0.00023425,64008.0,64004.0,0.088481]
[1724585578145,0.00023425,64008.0,64007.0,0.078078]
[1724585578348,0.09012668,64008.0,64007.0,0.2302511]
[1724585578551,0.00023425,64008.0,64007.0,0.168078]
[1724585578848,0.00023425,64008.0,64007.0,0.168478]
[1724585579246,0.04706108,64008.0,64007.0,0.168478]
[1724585579750,0.05106108,64008.0,64007.0,0.168478]
[1724585580137,0.05106108,64008.0,64007.0,0.23063312]
[1724585580138,0.00423425,64008.0,64007.0,0.23063312]
[1724585580336,0.00723425,64008.0,64007.0,0.23063312]
[1724585580549,0.0540542,64008.0,64007.0,0.23063312]
[1724585582447,0.0540542,64008.0,64007.0,0.168478]
[1724585584549,0.00723425,64008.0,64007.0,0.168478]
[1724585590843,0.00723425,64008.0,64007.0,0.21506865]
[1724585590844,0.05403407,64008.0,64007.0,0.21506865]
[1724585593466,0.00723425,64008.0,64007.0,0.168478]
[1724585595054,0.00723425,64008.0,64007.0,0.23057377]
[1724585595252,0.00723425,64008.0,64007.0,0.23057432]
[1724585595452,0.00723425,64008.0,64007.0,0.23057084]
[1724585595652,0.00723425,64008.0,64007.0,0.23057064]
[1724585601256,0.00723425,64008.0,64007.0,0.168478]
[1724585601758,0.00723425,64008.0,64007.0,0.23057379]
[1724585601963,0.00723425,64008.0,64007.0,0.168478]
[1724585606161,0.05403407,64008.0,64007.0,0.168478]
[1724585609675,0.00723425,64008.0,64007.0,0.168478]
[1724585612269,0.00723425,64008.0,64007.0,0.21507985]
[1724585612468,0.00723425,64008.0,64007.0,0.168478]
[1724585616780,0.08531025,64008.0,64007.0,0.0004]
[1724585616978,0.16340637,64008.0,64007.0,0.0004]
[1724585617283,0.16333825,64008.0,64007.0,0.0004]
[1724585617574,0.08531025,64008.0,64007.0,0.0004]
[1724585618170,0.11062662,64008.0,64007.0,0.0004]
[1724585618380,0.16332776,64008.0,64007.0,0.0004]
[1724585618580,0.08531025,64008.0,64007.0,0.0004]
[1724585618972,0.16332764,64008.0,64007.0,0.0004]
[1724585622380,0.08531025,64008.0,64007.0,0.0004]
[1724585624989,0.44611025,64008.0,64007.0,0.0004]
[1724585625173,0.08531025,64008.0,64007.0,0.0004]
[1724585625482,0.44611025,64008.0,64007.0,0.0004]
[1724585627678,0.08531025,64008.0,64007.0,0.0004]
[1724585627875,0.44611025,64008.0,64007.0,0.0004]
[1724585628181,0.44611025,64008.0,64007.0,0.088478]
[1724585635389,0.52412764,64008.0,64007.0,0.078478]
[1724585637987,0.44611025,64008.0,64007.0,0.078478]
[1724585638390,0.47142619,64008.0,64007.0,0.078478]
[1724585639799,0.47142619,64008.0,64007.0,0.0004]
[1724585640292,0.98142619,64008.0,64007.0,0.0004]
[1724585641898,0.47142619,64008.0,64007.0,0.0004]
[1724585646115,0.50158771,64008.0,64007.0,0.0004]
[1724585646707,0.61056043,64008.0,64007.0,0.0004]
[1724585647012,0.61056043,64008.0,64007.0,0.0304]
[1724585647901,0.24976043,64008.0,64007.0,0.0304]
[1724585648105,0.61056043,64008.0,64007.0,0.0304]
[1724585648806,0.50158771,64008.0,64007.0,0.0304]
[1724585649503,0.50158683,64008.0,64007.0,0.0304]
[1724585653110,0.47142598,64008.0,64007.0,0.0304]
[1724585653908,0.47142598,64008.0,64007.0,0.0004]
[1724585654507,0.47142624,64008.0,64007.0,0.0004]
[1724585657815,1.43382795,64008.0,64007.0,0.0004]
[1724585658020,1.43382795,64008.0,63998.0,0.07763986]
[1724585658021,0.078081,64004.0,64002.0,0.04664747]
[1724585658217,0.07201599,64003.0,64002.0,0.04664747]
[1724585658420,0.07201599,64003.0,64000.0,0.04664747]
[1724585658724,0.02531599,64002.0,64000.0,0.04664747]
[1724585659213,0.0004,64001.0,64000.0,0.04664747]
[1724585659417,0.078086,64000.0,63999.0,0.04664747]
[1724585659609,0.485886,64000.0,63999.0,0.04664747]
[1724585659811,0.078087,63999.0,63997.0,0.04664747]
[1724585660011,0.078088,63998.0,63997.0,0.04664747]
[1724585660422,0.078088,63998.0,63996.0,0.078091]
[1724585660423,0.078088,63998.0,63996.0,0.12473847]
[1724585660712,0.078488,63998.0,63996.0,0.12473847]
[1724585661112,0.0004,63997.0,63996.0,0.12473847]
[1724585661317,0.0004,63997.0,63996.0,0.078091]
[1724585662215,0.0004,63997.0,63995.0,0.04688172]
[1724585662518,0.078091,63996.0,63995.0,0.00023425]
[1724585662909,0.078491,63996.0,63995.0,0.00023425]
[1724585664119,0.079491,63996.0,63995.0,0.00023425]
[1724585665313,0.1418986,63996.0,63995.0,0.00023425]
[1724585665709,0.1428986,63996.0,63995.0,0.01023425]
[1724585666113,0.080491,63996.0,63995.0,0.01023425]
[1724585666418,0.1428978,63996.0,63995.0,0.01023425]
[1724585668119,0.080491,63996.0,63995.0,0.01023425]
[1724585668919,0.15856545,63996.0,63995.0,0.01023425]
[1724585669714,0.10581233,63996.0,63995.0,0.01023425]
[1724585670212,0.19954187,63996.0,63995.0,0.01023425]
[1724585670412,0.10581233,63996.0,63995.0,0.01023425]
[1724585671010,0.18390333,63996.0,63995.0,0.01023425]
[1724585671217,0.27763287,63996.0,63995.0,0.01023425]
[1724585672419,1.05270333,63996.0,63995.0,0.01023425]
[1724585672624,0.078103,63986.0,63985.0,0.0453]
[1724585672827,0.078103,63986.0,63985.0,0.0853]
[1724585673429,0.078503,63986.0,63985.0,0.0853]
[1724585673816,0.079503,63986.0,63985.0,0.0853]
[1724585674016,0.080503,63986.0,63985.0,0.054]
[1724585675129,0.10839157,63986.0,63985.0,0.054]
[1724585676227,0.15514502,63986.0,63985.0,0.054]
[1724585676424,0.10839157,63986.0,63985.0,0.054]
[1724585677620,0.10839157,63986.0,63985.0,0.132104]
[1724585678729,0.15514502,63986.0,63985.0,0.132104]
[1724585680031,0.07704202,63986.0,63985.0,0.132104]
[1724585680225,0.03028857,63986.0,63985.0,0.132104]
[1724585683334,0.07704202,63986.0,63985.0,0.132104]
[1724585683832,0.03028857,63986.0,63985.0,0.132104]
[1724585686031,0.03028857,63986.0,63985.0,0.17871758]
[1724585687437,0.03028857,63986.0,63985.0,0.132104]
[1724585690440,0.0024,63986.0,63985.0,0.492904]
[1724585690639,0.04920413,63986.0,63985.0,0.492904]
[1724585692835,0.0024,63986.0,63985.0,0.492904]
[1724585698044,0.04920413,63986.0,63985.0,0.492904]
[1724585701234,0.0024,63986.0,63985.0,0.492904]
[1724585702235,0.0024,63986.0,63985.0,0.132104]
[1724585702835,0.06476525,63986.0,63985.0,0.132104]
[1724585705235,0.0024,63986.0,63985.0,0.132104]
[1724585705640,0.0024,63986.0,63985.0,0.19435145]
[1724585707345,0.0024,63986.0,63985.0,0.132104]
[1724585709245,0.3632,63986.0,63985.0,0.132104]
[1724585709643,0.3632,63986.0,63985.0,0.17880385]
[1724585710448,0.441303,63986.0,63985.0,0.054]
[1724585710745,0.51925956,63986.0,63985.0,0.014]
[1724585712342,0.4666283,63986.0,63985.0,0.014]
[1724585712677,0.46662875,63986.0,63985.0,0.014]
[1724585713448,0.441303,63986.0,63985.0,0.014]
[1724585714251,0.51935714,63986.0,63985.0,0.014]
[1724585714447,0.46662892,63986.0,63985.0,0.014]
[1724585715553,0.441303,63986.0,63985.0,0.014]
[1724585716360,0.078107,63983.0,63981.0,0.078108]
[1724585716550,0.078107,63983.0,63981.0,0.098108]
[1724585717258,0.078107,63983.0,63982.0,0.077708]
[1724585717551,0.078107,63983.0,63982.0,0.097708]
[1724585717758,0.079107,63983.0,63982.0,0.097708]
[1724585717955,0.080107,63983.0,63982.0,0.097708]
[1724585718347,0.14251482,63983.0,63982.0,0.097708]
[1724585718551,0.14251272,63983.0,63982.0,0.097708]
[1724585718753,0.14251272,63983.0,63982.0,0.105708]
[1724585719262,0.17009669,63983.0,63982.0,0.105708]
[1724585719448,0.16909669,63983.0,63982.0,0.105708]
[1724585719650,0.17009669,63983.0,63982.0,0.105708]
[1724585721250,0.53089669,63983.0,63982.0,0.105708]
[1724585721956,0.17009669,63983.0,63982.0,0.105708]
[1724585722156,0.45278969,63983.0,63982.0,0.105708]
[1724585723455,0.39038397,63983.0,63982.0,0.105708]
[1724585725362,0.39038397,63983.0,63982.0,0.15240785]
[1724585726964,0.02958397,63983.0,63982.0,0.15240785]
[1724585728061,0.02958397,63983.0,63982.0,0.105708]
[1724585728266,0.02958397,63983.0,63982.0,0.15240785]
[1724585732471,0.02958397,63983.0,63982.0,0.105708]
[1724585732667,0.02958397,63983.0,63982.0,0.15237731]
[1724585733073,0.02958397,63983.0,63982.0,0.105708]
[1724585738370,0.02958397,63983.0,63976.0,0.07763986]
[1724585738371,0.078147,63950.0,63945.0,0.17204326]
[1724585738574,0.3608,63947.0,63946.0,0.0244]
[1724585738871,0.7349807,63947.0,63946.0,0.0044]
[1724585739065,0.7353807,63947.0,63946.0,0.0044]
[1724585739262,0.73550574,63947.0,63946.0,0.0044]
[1724585739461,0.78804485,63947.0,63946.0,0.0044]
[1724585739665,1.22016479,63947.0,63946.0,0.0044]
[1724585739872,1.22116479,63947.0,63946.0,0.0044]
[1724585740065,1.32465846,63947.0,63940.0,0.04683444]
[1724585740268,0.3608,63941.0,63940.0,0.04683444]
[1724585741476,0.3618,63941.0,63940.0,0.04683444]
[1724585741776,0.39006929,63941.0,63940.0,0.04683444]
[1724585742071,0.03026929,63941.0,63940.0,0.41763444]
[1724585742280,0.03026929,63941.0,63940.0,0.05683444]
[1724585742468,0.03026929,63941.0,63940.0,0.04683444]
[1724585746488,0.39106929,63941.0,63940.0,0.04683444]
[1724585747381,0.39146929,63941.0,63940.0,0.04683444]
[1724585748476,0.39046929,63941.0,63940.0,0.04683444]
[1724585748708,0.39146929,63941.0,63940.0,0.04683444]
[1724585748975,0.46962729,63941.0,63940.0,0.11683444]
[1724585753777,0.46962729,63941.0,63940.0,0.00023444]
[1724585755449,0.46862729,63941.0,63940.0,0.00023444]
[1724585755888,0.46962729,63941.0,63940.0,0.00023444]
[1724585757989,0.97962729,63941.0,63940.0,0.00023444]
[1724585758586,0.078168,63933.0,63931.0,0.12397]
[1724585758926,0.04646318,63932.0,63931.0,0.23397]
[1724585759287,0.04686318,63932.0,63931.0,0.23397]
[1724585759689,0.0004,63932.0,63931.0,0.23397]
[1724585760689,0.0014,63932.0,63931.0,0.23397]
[1724585761690,0.04786318,63932.0,63931.0,0.23397]
[1724585762593,0.0024,63932.0,63931.0,0.23397]
[1724585763586,0.06435091,63932.0,63931.0,0.23397]
[1724585764693,0.0024,63932.0,63931.0,0.23397]
[1724585766091,0.08015537,63932.0,63931.0,0.23397]
[1724585766590,0.0024,63932.0,63931.0,0.23397]
[1724585769594,0.06224879,63933.0,63931.0,0.63397]
[1724585769891,7.2e-07,63942.0,63932.0,0.83175587]
[1724585770080,0.04685145,63944.0,63943.0,0.078156]
[1724585770288,0.04697649,63947.0,63946.0,0.078152]
[1724585770485,0.04684774,63952.0,63951.0,0.078146]
[1724585770683,0.04684774,63952.0,63951.0,1.054786]
[1724585770883,0.04684774,63955.0,63953.0,0.078143]
[1724585771083,0.00023463,63958.0,63953.0,0.078143]
[1724585771084,0.04684774,63956.0,63955.0,0.078141]
[1724585771368,0.04684774,63956.0,63955.0,0.178141]
[1724585771483,0.00023463,63958.0,63957.0,0.078138]
[1724585771685,0.00023463,63958.0,63957.0,0.538938]
[1724585771886,0.00023463,63958.0,63957.0,1.408018]
[1724585773586,0.04708237,63958.0,63957.0,1.456218]
[1724585773789,0.00023463,63958.0,63957.0,1.456218]
[1724585774003,0.00123463,63958.0,63957.0,1.467218]
[1724585774696,0.00223463,63958.0,63957.0,1.469218]
[1724585775298,0.00223463,63958.0,63957.0,1.585018]
[1724585778405,0.00223463,63958.0,63957.0,1.469218]
[1724585778611,0.00223463,63958.0,63957.0,1.585018]
[1724585779710,0.00223463,63958.0,63957.0,1.945818]
[1724585780207,0.00223463,63958.0,63957.0,1.224218]
[1724585780409,0.00223463,63958.0,63957.0,1.945818]
[1724585780710,0.00223463,63958.0,63957.0,1.224218]
[1724585780910,0.00223463,63958.0,63957.0,1.945818]
[1724585781300,0.00223463,63958.0,63957.0,0.4738]
[1724585781504,0.00223463,63958.0,63957.0,0.191138]
[1724585789822,0.00223463,63958.0,63957.0,0.191538]
[1724585791617,0.0647037,63958.0,63957.0,0.191538]
[1724585792515,0.00223463,63958.0,63957.0,0.191538]
[1724585792918,0.06437652,63958.0,63957.0,0.191538]
[1724585793515,0.00223463,63958.0,63957.0,0.191538]
[1724585798543,0.04891634,63958.0,63957.0,0.191538]
[1724585799726,0.00223463,63958.0,63957.0,0.191538]
[1724585803624,0.02756843,63958.0,63957.0,0.191538]
[1724585805732,0.02756875,63958.0,63957.0,0.191538]
[1724585809240,0.17405655,63958.0,63957.0,0.1134]
[1724585809430,0.88763498,63958.0,63946.0,0.3223]
[1724585809628,0.09371703,63951.0,63949.0,0.078148]
[1724585809833,0.4106,63950.0,63949.0,0.078148]
[1724585810038,0.43593412,63950.0,63949.0,0.078148]
[1724585810253,0.52965115,63950.0,63949.0,0.078148]
[1724585810441,0.43593412,63950.0,63949.0,0.088148]
[1724585811042,0.52967304,63950.0,63949.0,0.088148]
[1724585811232,0.43593412,63950.0,63949.0,0.088148]
[1724585811430,0.52965535,63950.0,63949.0,0.088148]
[1724585811632,0.4106,63950.0,63949.0,0.088148]
[1724585812041,0.0498,63950.0,63949.0,0.088148]
[1724585812339,0.4106,63950.0,63949.0,0.088148]
[1724585812746,0.4126,63950.0,63949.0,0.091148]
[1724585813241,0.4126,63950.0,63949.0,0.088148]
[1724585813949,0.4401078,63950.0,63949.0,0.088148]
[1724585814334,0.3628,63950.0,63949.0,0.088148]
[1724585819347,0.42523267,63950.0,63949.0,0.13468604]
[1724585820545,0.3628,63950.0,63949.0,0.088148]
[1724585820817,0.42523142,63950.0,63949.0,0.088148]
[1724585821050,0.42523167,63950.0,63949.0,0.088148]
[1724585821246,0.3628,63950.0,63949.0,0.088148]
[1724585821448,0.42523071,63950.0,63949.0,0.088148]
[1724585821651,0.3628,63950.0,63949.0,0.088148]
[1724585821842,0.42523147,63950.0,63949.0,0.088148]
[1724585822043,0.42523149,63950.0,63949.0,0.088148]
[1724585822448,0.42523149,63950.0,63949.0,0.13468604]
[1724585822753,0.42523149,63950.0,63949.0,0.088148]
[1724585823046,0.42523137,63950.0,63949.0,0.088148]
[1724585823250,0.42523119,63950.0,63949.0,0.088148]
[1724585823554,0.3628,63950.0,63949.0,0.088148]
[1724585824091,0.42523144,63950.0,63949.0,0.088148]
[1724585824339,0.3628,63950.0,63949.0,0.088148]
[1724585825144,0.42523203,63950.0,63949.0,0.088148]
[1724585825651,0.002,63950.0,63949.0,0.088148]
[1724585826063,0.08003611,63950.0,63949.0,0.088148]
[1724585826842,0.002,63950.0,63949.0,0.088148]
[1724585827042,0.08003611,63950.0,63949.0,0.088148]
[1724585827442,0.002,63950.0,63949.0,0.088148]
[1724585827647,0.08003611,63950.0,63949.0,0.088148]
[1724585829753,0.002,63950.0,63949.0,0.088148]
[1724585829958,0.08004973,63950.0,63949.0,0.088148]
[1724585831248,0.002,63950.0,63949.0,0.088148]
[1724585831454,0.3628,63950.0,63949.0,0.088148]
[1724585831664,0.38813667,63950.0,63949.0,0.088148]
[1724585831863,0.4818579,63950.0,63949.0,0.088148]
[1724585832659,0.38813667,63950.0,63949.0,0.088148]
[1724585833158,0.02733667,63950.0,63949.0,0.088148]
[1724585833663,0.002,63950.0,63949.0,0.088148]
[1724585836055,0.06447358,63950.0,63949.0,0.088148]
[1724585836284,0.002,63950.0,63949.0,0.088148]
[1724585836472,0.06447358,63950.0,63949.0,0.088148]
[1724585836851,0.002,63950.0,63949.0,0.088148]
[1724585837356,0.06447358,63950.0,63949.0,0.088148]
[1724585837560,0.06447358,63950.0,63949.0,0.15020512]
[1724585838758,0.002,63950.0,63949.0,0.088148]
[1724585839094,0.38951126,63953.0,63949.0,0.088148]
[1724585839095,0.05107358,63953.0,63949.0,0.088148]
[1724585839276,0.05107358,63954.0,63953.0,0.078143]
[1724585839565,0.00023463,63958.0,63957.0,0.078139]
[1724585839764,0.02853043,63958.0,63957.0,0.168139]
[1724585839964,0.00023463,63958.0,63957.0,0.168139]
[1724585840270,0.00023463,63958.0,63957.0,0.21487825]
[1724585841065,0.00123463,63958.0,63957.0,0.21487825]
[1724585841662,0.00123463,63958.0,63957.0,0.168139]
[1724585842465,0.00223463,63958.0,63957.0,0.168139]
[1724585848665,0.13654224,63958.0,63957.0,0.168139]
[1724585849044,0.16672592,63958.0,63957.0,0.168139]
[1724585849956,0.14139107,63958.0,63957.0,0.168139]
[1724585850164,0.16672599,63958.0,63957.0,0.168139]
[1724585850555,0.24486299,63958.0,63957.0,0.168139]
[1724585850757,0.078143,63954.0,63953.0,0.078143]
[1724585850958,0.13366164,63954.0,63953.0,0.118143]
[1724585851357,0.64366164,63954.0,63953.0,0.118143]
[1724585851552,0.64406164,63954.0,63953.0,0.118143]
[1724585851962,0.75337128,63954.0,63953.0,0.118143]
[1724585852169,0.7533731,63954.0,63953.0,0.118143]
[1724585853169,0.7533731,63954.0,63953.0,0.121143]
[1724585853360,0.2433731,63954.0,63953.0,0.121143]
[1724585854372,0.13406346,63954.0,63953.0,0.121143]
[1724585854578,0.18786572,63954.0,63953.0,0.121143]
[1724585854862,0.24338618,63954.0,63953.0,0.121143]
[1724585855461,0.13406346,63954.0,63953.0,0.121143]
[1724585855864,0.078543,63954.0,63953.0,0.121143]
[1724585858268,0.078543,63954.0,63950.0,0.04673925]
[1724585858269,0.078146,63951.0,63950.0,0.04673925]
[1724585858469,0.078147,63950.0,63949.0,0.04673925]
[1724585858788,0.438947,63950.0,63949.0,0.01]
[1724585859274,0.439347,63950.0,63949.0,0.01]
[1724585860179,0.440347,63950.0,63949.0,0.014]
[1724585861474,0.441347,63950.0,63949.0,0.014]
[1724585865193,0.46917494,63950.0,63949.0,0.092148]
[1724585868557,0.10837494,63950.0,63949.0,0.092148]
[1724585868669,0.46917494,63950.0,63949.0,0.092148]
[1724585868869,0.10837494,63950.0,63949.0,0.092148]
[1724585869066,0.46917494,63950.0,63949.0,0.092148]
[1724585873177,0.10837494,63950.0,63949.0,0.092148]
[1724585874478,0.10837494,63950.0,63949.0,0.13888725]
[1724585878913,0.10837494,63950.0,63949.0,0.092148]
[1724585879177,0.13371307,63950.0,63949.0,0.092148]
[1724585885985,0.10837494,63950.0,63949.0,0.13888725]
[1724585886492,0.13371279,63950.0,63949.0,0.13888725]